Cogmind - Beta 11.2 @@@ ROGUE MODE // 2022.12.24 @ 01:10:42 // Winter2022/Polymind Player: Runia Result: Destroyed by D-53 Grenadier with Mini Grenade Launcher Performance ------------- Evolutions (0) 0 Regions Visited (2) 400 Robots Destroyed (15) 75 Value Destroyed (392) 392 Prototype IDs (0) 0 Alien Tech Used (0) 0 Bonus (1531) 1531 TOTAL SCORE: 1868 Bonus ------- Polymind Skill 1520 High Alert Combat Kills 11 Cogmind --------- Core Integrity 0/250 Matter 0/0 Energy 60/100 System Corruption 0% Temperature Cool (0) Movement Core (50) Location -10/Mines Parts ------- > --- POWER (1) -------- (None) > --- PROPULSION (2) --- (None) > --- UTILITY (3) ------ (None) > --- WEAPON (1) ------- (None) > --- INVENTORY (0) ---- (None) Peak State ------------ > --- POWER ------------ Fission Core > --- PROPULSION ------- Flexi-carbon Leg Flexi-carbon Leg > --- UTILITY ---------- Targeting Computer Armor Integrity Analyzer Phase Shifter > --- WEAPON ----------- Bore Cannon > --- INVENTORY -------- (None) [Rating: 30] Favorites ----------- Power Fission Core Engine Light Ion Engine Power Core Fission Core Propulsion Flexi-carbon Leg Leg Flexi-carbon Leg Flight Unit Flight Unit Utility Armor Integrity Analyzer Device Phase Shifter Processor Armor Integrity Analyzer Weapon Bore Cannon Ballistic Gun Light Assault Rifle Ballistic Cannon Bore Cannon Build | -11 -10 -10 ------- Run | Scr Mat Min Slots Evolved . | . . . Power . | . . . Propulsion . | . . . Utility . | . . . Weapon . | . . . Parts Attached . | . . . Power . | . . . Engine . | . . . Core . | . . . Reactor . | . . . Propulsion . | . . . Treads . | . . . Leg . | . . . Wheel . | . . . Hover . | . . . Flight . | . . . Utility . | . . . Device . | . . . Storage . | . . . Processor . | . . . Hackware . | . . . Protection . | . . . Artifact . | . . . Weapon . | . . . Energy Gun . | . . . Energy Cannon . | . . . Ballistic Gun . | . . . Ballistic Cannon . | . . . Launcher . | . . . Special Weapon . | . . . Impact Weapon . | . . . Slashing Weapon . | . . . Piercing Weapon . | . . . Special Melee Weapon . | . . . Unidentified Prototypes . | . . . Parts Lost 4 | . 1 3 Power 1 | . . 1 Propulsion 1 | . 1 . Utility 2 | . . 2 Weapon . | . . . Highest Loss Streak 2 | . 1 2 To Critical Strikes . | . . . Average Slot Usage (%) 74 | . 76 73 Engine 10 | . 23 1 Core 7 | . . 12 Leg 14 | . . 24 Flight 13 | . 30 1 Device 1 | . . 3 Processor 8 | . . 15 Ballistic Gun 10 | . 23 1 Ballistic Cannon 7 | . . 12 Naked Turns 26 | . 14 12 Heaviest Build 20 | . 4 20 Greatest Support 40 | 3 8 40 Greatest Overweight (x) . | . . . Average Overweight (x) . | . . . Largest Inventory Capacity 1 | . . 1 Average Capacity . | . . . Most Carried . | . . . Average Carried . | . . . Final Capacity . | . . . Final Carried . | . . . Class Distribution -------------------- 53% | Hunter 42% | Swarmer 4% | Cogmind Dominant Class ---------------- Swarmer | -10/Materials Hunter | -10/Mines Resources | -11 -10 -10 ----------- Run | Scr Mat Min Matter Collected 424 | . 24 400 Remotely . | . . . Salvage Created 444 | . 82 362 Parts 26 | . 11 15 Haulers Intercepted . | . . . Recyclers Shooed 1 | . 1 . Parts Field Recycled . | . . . Retrieved Matter . | . . . Parts Self-Destructed . | . . . Prevented . | . . . Kills | -11 -10 -10 ------- Run | Scr Mat Min Combat Hostiles Destroyed 19 | . 5 14 Guns 5 | . 5 . Cannons 13 | . . 13 AOE 1 | . . 1 Classes Destroyed 5 | . 2 3 Recycler 1 | . . 1 Watcher 1 | . 1 . Swarmer 6 | . 5 1 Grunt 7 | . . 7 Assembled 6 | . . 6 Best Kill Streak 7 | . 4 7 Combat Bots Only 7 | . 3 7 Max Kills in Single Turn 1 | . 1 1 Gunslinging . | . . . Exploded 1 | . . 1 Melee . | . . . Uniques/NPCs Destroyed . | . . . Combat | -11 -10 -10 -------- Run | Scr Mat Min Damage Taken 764 | . 193 571 Core 255 | . 69 186 Absorbed by Shields . | . . . Core Remaining (%) 100 | 100 . . Volleys Fired 100 | . 38 62 Largest 1 | . 1 1 Hottest 57 | . 20 57 Shots Fired 100 | . 38 62 Gun 38 | . 38 . Cannon 62 | . . 62 Launcher . | . . . Special . | . . . Kinetic 100 | . 38 62 Thermal . | . . . Explosive . | . . . Electromagnetic . | . . . Robot Hit Streak 6 | . 5 6 Robot Miss Streak 7 | . 4 7 Penetration Max 1 | . . 1 Secondary Targets . | . . . Shots Hit Robots 48 | . 20 28 Core Hits 27 | . 11 16 Critical Kills 10 | . . 10 Critical Parts Destroyed 7 | . 1 6 Critical Strikes 17 | . 1 16 Destroy 17 | . 1 16 Melee Attacks . | . . . Impact . | . . . Slashing . | . . . Piercing . | . . . Sneak Attacks . | . . . Combat Hostiles . | . . . Follow-up Attacks . | . . . Damage Inflicted 884 | . 174 710 Guns 174 | . 174 . Cannons 609 | . . 609 Explosions 101 | . . 101 Melee . | . . . Ramming . | . . . Kinetic 783 | . 174 609 Thermal 101 | . . 101 Explosive . | . . . Electromagnetic . | . . . Impact . | . . . Slashing . | . . . Piercing . | . . . Highest Corruption . | . . . Average Corruption . | . . . Corruption Purged . | . . . Corruption Blocked . | . . . Overload Shots . | . . . Overflow Damage 14 | . . 14 Projectiles 14 | . . 14 Explosions . | . . . Melee . | . . . Knockbacks 2 | . . 2 Impact . | . . . Kinetic 2 | . . 2 Secondary . | . . . Self-Inflicted Damage . | . . . Shots . | . . . Rammed . | . . . Targets Rammed . | . . . Kicked . | . . . Crushed . | . . . Highest Temperature 53 | . 28 53 Average Temperature 12 | . 12 13 Received Heat Transfer 203 | . 12 191 Siege Activations . | . . . Robots Corrupted . | . . . Combat Hostiles . | . . . Parts Fried . | . . . Impact Corruptions . | . . . Robots Melted . | . . . Combat Hostiles . | . . . Parts Melted . | . . . Heat Transferred 100 | . . 100 Parts Sabotaged . | . . . Parts Stolen . | . . . Parts Stripped . | . . . Power Chain Reactions . | . . . Missiles Intercepted . | . . . Alert | -11 -10 -10 ------- Run | Scr Mat Min Peak Influence 463 | . 214 463 Initial 83 | . . 83 Average 221 | . 149 278 Maximum Alert Level 2 | . 1 2 Low Security (%) 44 | 100 61 30 Level 1 43 | . 38 48 Level 2 11 | . . 20 Level 3 . | . . . Level 4 . | . . . Level 5 . | . . . High Security . | . . . Max Security . | . . . Squads Dispatched . | . . . Investigation . | . . . Extermination . | . . . Reinforcement . | . . . Assault . | . . . Garrison . | . . . Intercept . | . . . Searches Triggered . | . . . Construction Impeded . | . . . Haulers Reinforced . | . . . Active Scanning Responses . | . . . Cargo Convoy Interrupts . | . . . Stealth | -11 -10 -10 --------- Run | Scr Mat Min Distress Signals . | . . . Communications Jammed . | . . . Distress Signals . | . . . Times Spotted 37 | . 14 23 Peak Tracking Total 5 | . 3 5 Tactical Retreats . | . . . Traps | -11 -10 -10 ------- Run | Scr Mat Min Traps Triggered . | . . . Indirectly . | . . . Trap Hack Attempts . | . . . Triggered . | . . . Disarmed . | . . . Reprogrammed . | . . . Reused . | . . . Traps Extracted . | . . . Installed . | . . . Triggered . | . . . Machines | -11 -10 -10 ---------- Run | Scr Mat Min Machines Disabled 2 | . . 2 Max in Single Turn 1 | . . 1 Machines Sabotaged . | . . . Garrisons Compromised . | . . . Overloaded Fab Kills . | . . . Hacking | -11 -10 -10 --------- Run | Scr Mat Min Machines Accessed 1 | . 1 . Terminals 1 | . 1 . Fabricators . | . . . Repair Stations . | . . . Recycling Units . | . . . Scanalyzers . | . . . Garrison Access . | . . . Total Hacks 5 | . 5 . Successful 3 | . 3 . Failed 2 | . 2 . Catastrophic . | . . . Database Lockouts . | . . . Manual . | . . . Terminals 5 | . 5 . Fabricators . | . . . Repair Stations . | . . . Recycling Units . | . . . Scanalyzers . | . . . Garrison Access . | . . . Terminal Hacks 3 | . 3 . Record 2 | . 2 . Branch Access Points 1 | . 1 . Fabricator Hacks . | . . . Repair Station Hacks . | . . . Recycling Unit Hacks . | . . . Scanalyzer . | . . . Garrison Access Hacks . | . . . Unauthorized Hacks . | . . . Terminals . | . . . Fabricators . | . . . Repair Stations . | . . . Recycling Units . | . . . Scanalyzers . | . . . Garrison Access . | . . . Data Cores Recovered . | . . . Used . | . . . Hacking Detections 1 | . 1 . Full Trace Events . | . . . Feedback Events . | . . . Feedback Blocked . | . . . Robot Schematics Acquired . | . . . Robots Built . | . . . Authchips . | . . . Time . | . . . Total Robot Build Rating . | . . . Part Schematics Acquired . | . . . Parts Built . | . . . Authchips . | . . . Time . | . . . Total Part Build Rating . | . . . Parts Repaired . | . . . Time . | . . . Parts Recycled . | . . . Recycled Matter . | . . . Retrieved Matter . | . . . Retrieved Components . | . . . Parts Scanalyzed . | . . . Part Schematics Acquired . | . . . Parts Damaged . | . . . Bothacking | -11 -10 -10 ------------ Run | Scr Mat Min Used RIF Installer . | . . . Robots Hacked 1 | . 1 . Non-combat . | . . . Combat 1 | . 1 . Robot Hacks Applied 1 | . 1 . find_shortcuts 1 | . 1 . Relay Couplers Released . | . . . Fabnet Peak Effective % . | . . . Robots Rewired . | . . . Allies Hacked . | . . . Hacks Repelled . | . . . Allies | -11 -10 -10 -------- Run | Scr Mat Min Total Allies . | . . . Largest Group . | . . . Highest-Rated Group . | . . . Highest-Rated Ally . | . . . Total Orders . | . . . Ally Attacks . | . . . Total Damage . | . . . Kills . | . . . Allies Corrupted . | . . . Allies Melted . | . . . Intel | -11 -10 -10 ------- Run | Scr Mat Min Robot Analysis Total 2 | . 1 1 Derelict Logs Recovered . | . . . Drone Launches . | . . . Drone Recoveries . | . . . Exploration | -11 -10 -10 ------------- Run | Scr Mat Min Turns Passed 640 | 5 273 362 Spaces Moved 728 | 10 507 211 Core 44 | 10 23 11 Treads . | . . . Legs 174 | . . 174 Wheels . | . . . Hover . | . . . Flight 510 | . 484 26 Fastest Speed 37 | 50 37 40 Average Speed 59 | 50 39 106 Slowest Speed 120 | 50 50 120 Overloaded Moves . | . . . Propulsion Burnouts . | . . . Robots Hopped 5 | . 5 . Cave-ins Triggered . | . . . Exploration Rate (%) 42 | 3 71 53 Regions Visited 2 Branch Regions 1 Pre-discovered Areas . | . . . Known Exits Taken 1 | . 1 . Unknown Exits Taken 1 | 1 . . Scrap Searched 1 | . . 1 Spaces Dug . | . . . Terrain Destroyed 57 | . . 57 Melee . | . . . Projectile 40 | . . 40 AOE 17 | . . 17 Terrain Rammed . | . . . Walls Destroyed . | . . . Machines Disabled . | . . . Actions | -11 -10 -10 --------- Run | Scr Mat Min Total 836 | 9 541 286 Wait 15 | . 2 13 Move 717 | 9 497 211 Hop 4 | . 4 . Pick Up . | . . . Fast Attach . | . . . Attach . | . . . Detach . | . . . Swap . | . . . Drop . | . . . Fire 100 | . 38 62 Melee . | . . . Ram . | . . . Kick . | . . . Crush . | . . . Escape Stasis . | . . . Rewire . | . . . Trap . | . . . Miscellaneous . | . . . Route ------- -11/Scrapyard -10/Materials (discovered 3 exits: [*Mat x2] / *Min) -10/Mines History --------- Turn | Location | Event 1 | -11/Scrapyard | Discovered new exit (range 3) 6 | -11/Scrapyard | Entered Materials 115 | -10/Materials | Discovered new exit (range 12) 184 | -10/Materials | Discovered new exit (range 10) 246 | -10/Materials | Identified exit to Mines 279 | -10/Materials | Entered Mines 286 | -10/Mines | Assembled infested the area 305 | -10/Mines | Met a Derelict bent on vengeance 457 | -10/Mines | Destroyed 7 combat bots 490 | -10/Mines | Core integrity fell below 50% 617 | -10/Mines | Core integrity fell below 20% 641 | -10/Mines | Destroyed by D-53 Grenadier with Mini Grenade Launcher Last Messages --------------- 00583_ Acquired 39 matter. 00584_ U-05 Engineer lays Concrete. 00589_ R-06 Scavenger collects Sml. Laser. 00590_ U-05 Engineer lays Concrete. 00595_ R-06 Scavenger collects Imp. Heat Sink. 00596_ U-05 Engineer lays Concrete. 00598_ R-06 Scavenger collects Lgt. Nuclear Core. 00599_ U-05 Engineer lays Concrete. 00603_ K-01 Serf collects debris. 00604_ U-05 Engineer lays Concrete. 00606_ K-01 Serf collects debris. 00612_ HV Slug penetrates Wall. 00614_ Fission Core destroyed. 00614_ K-01 Serf destroyed. 00626_ U-05 Engineer lays Concrete. 00629_ U-05 Engineer builds a Wall. 00629_ Released control of 7E-NVS(h). 00630_ R-06 Scavenger destroyed. 00631_ The unstable cave ceiling collapses. 00632_ U-05 Engineer destroyed. Map ----- +----------------------------------------------------+ | | | | | | | | | | | | | | | | | ?????????????????????????????????????????????????? | | ?????????????????????????????????????????????????? | | ?????????????????????????????????????????????????? | | ?????????????????????????????????????????????????? | | ?????????????????????????????????????????????????? | | ?????????????????????????????????????????????????? | | ?????????????????????????????????????????????????? | | ?????????????????????????????????????????????????? | | ?????????????????????????????????????????????????? | | ?????????????????????????????????????????????????? | | ?????????????????????????????????????????????????? | | ?????????????????????????????????????????????????? | | ??#????????????###???????????????????????????????? | | ? #??????????### #???????????????????????????????? | | ?????????#### ##???????????##?????????????????? | | ??????????# ##????##### ??????????????????? | | ?????????### ##??##;;###### ??????????????? | | ???????### ####@ ; #????????????????? | | ?????### ;##????????????????? | | ?????# # d d ;####??????????????? | | ????## ## %! * ; #??????????????? | | ????# ## [ # % ;####??????????????? | | ????## = # #% ; #???????????????? | | ?????# = ### # * ## ;###???????????????? | | ?????# #?#?#### ##### #;##?????????????????? | | ???? #??????# #???# ###??????????????????? | | ??# ####?????## ##??# #????????????????????? | | ??# ######### ##?# #????????????????????? | | ##" ##? ????????????????????? | | #?### #?##????????????????????? | | ????# ####### #???????????????????????? | | ??## ?????# ##???????????????????????? | | ## #?????## # ##????????????????????????? | | # ###???????#### #?????????????????????????? | | #?????????????# #?????????????????????????? | | #?????????????# #?????????????????????????? | | #??????????????# #???????????????#?????????? | | ##??????????????# #????????????## ??????????? | | ##???????????????# #??????????? ???????????? | | #????????????????# #??????????# #????????????? | | # ##########???????# #????????## ##???????????? | | # !% #???????# ######### ##??????????? | +----------------------------------------------------+ Best States ------------- Heat Dissipation 37 Energy Generation 23 Energy Capacity 260 Matter Stores 200 Matter Capacity 200 Sight Range 16 Terrain Scan Density 10 Resistance: KI 25 Phase Shifting 5 Evasion (%) 62 Targeting Accuracy 5 Armor Integrity Analysis 30 Item Schematics ----------------- None Robot Schematics ------------------ None Fabricated ------------ Nothing Alien Tech Used ----------------- None Achievements -------------- None Challenges ------------ None Polymind | -11 -10 -10 ---------- Run | Scr Mat Min Robots Controlled 2 | . 1 1 Combat Hostiles 1 | . 1 . Allies 1 | . . 1 Classes Controlled 2 | . 1 1 Average Host Suspicion 84 | . 100 72 Unsuspicious Activity 210 | . . 210 Returns to Shadow 2 | . . 2 Fuzzy Dispatches . | . . . Protomatter Created 172 | . 11 161 Used 22 | . 6 16 Decayed 23 | . . 23 Highest Spend 16 | . 6 16 Top 5 Hosts by Kills: 7E-NVS(h) (-10/Mines: 14) S-10 Pest (-10/Materials: 5) Game ------ Seed BiometalHelicalRedirector Manual? 0 Play Time 00:08:15 Cumulative 745.4 hours Start 2022.12.24 @ 00:54:28 End 2022.12.24 @ 01:10:42 Sessions 1 Manual Loads 0 Difficulty Rogue Special Mode Winter2022/Polymind Game No. 657 Rogue 657 Adventurer 0 Explorer 0 Win Type - Total 35 Types 14/5/6/1/1/1/5/1/1 Lore% 94 Gallery% 97 Achievement% 81 Wizard Run 0 Options --------- ASCII 0 Keyboard 0 Movement Mouse Keybinds 1 Fullscreen 2 Font 24/Smallcaps Map View 76x50 Tactical HUD 1 Map Filters NONE Filters NONE Steam 1 RUN: fc6f1e2a-bb88-412c-8b36-147bddad206e